fUSD/lending_fUSD_20240331
["ID","MTS","AMOUNT","RATE_DAILY","PERIOD"]
[321142454,1711908671731,-500.0,0.0005589,120]
[321142455,1711908671740,-500.0,0.0005589,120]
[321142456,1711908671750,-834.12,0.0005589,120]
[321142457,1711908671759,-500.0,0.0005589,120]
[321142458,1711908671770,-500.0,0.0005589,120]
[321142459,1711908671781,-515.94,0.0005589,120]
[321142460,1711908671790,-500.0,0.0005589,120]
[321142461,1711908671800,-500.0,0.0005589,120]
[321142462,1711908671810,-500.0,0.0005589,120]
[321142463,1711908671820,-500.0,0.0005589,120]
[321142464,1711908671829,-597.15,0.0005589,120]
[321142465,1711908671838,-500.0,0.0005589,120]
[321142466,1711908671849,-500.0,0.0005589,120]
[321142467,1711908671859,-500.0,0.0005589,120]
[321142468,1711908671868,-2161.52,0.0005589,120]
[321142469,1711908671877,-523.05,0.0005589,120]
[321142470,1711908671887,-500.0,0.0005589,120]
[321142471,1711908671896,-597.54694954,0.0005589,120]
[321142472,1711908671906,-500.0,0.0005589,120]
[321142473,1711908671915,-500.0,0.0005589,120]
[321142474,1711908671925,-500.0,0.0005589,120]
[321142475,1711908671935,-500.0,0.0005589,7]
[321142476,1711908671944,-851.6,0.0005589,120]
[321142477,1711908671953,-500.0,0.0005589,120]
[321142478,1711908671963,-500.0,0.0005589,120]
[321142479,1711908671972,-500.0,0.0005589,120]
[321142480,1711908671981,-639.09,0.0005589,120]
[321142481,1711908671991,-540.27887713,0.0005589,120]
[321142482,1711908672001,-500.0,0.0005589,120]
[321142483,1711908672012,-226.96,0.0005589,120]
[321142484,1711908672022,-500.0,0.0005589,120]
[321142485,1711908672031,-500.0,0.0005589,120]
[321142486,1711908672041,-500.0,0.0005589,120]
[321142487,1711908672051,-500.0,0.0005589,120]
[321142488,1711908672061,-1120.95,0.0005589,120]
[321142489,1711908672070,-500.0,0.0005589,120]
[321142490,1711908672080,-500.0,0.0005589,120]
[321142491,1711908672089,-500.0,0.0005589,50]
[321142492,1711908672099,-500.0,0.0005589,120]
[321142493,1711908672108,-500.0,0.0005589,120]
[321142494,1711908672118,-13825.51,0.0005589,120]
[321142495,1711908672127,-500.0,0.0005589,120]
[321142496,1711908672137,-4835.83,0.0005589,120]
[321142497,1711908672146,-500.0,0.0005589,120]
[321142498,1711908672156,-500.0,0.0005589,120]
[321142499,1711908672165,-500.0,0.0005589,120]
[321142500,1711908672175,-500.0,0.0005589,120]
[321142501,1711908672185,-500.0,0.0005589,120]
[321142502,1711908672195,-645.15,0.0005589,120]
[321142503,1711908672204,-315.15,0.0005589,120]
[321142504,1711908672214,-500.0,0.0005589,120]
[321142505,1711908672224,-268.76491316,0.0005589,120]
[321142506,1711908672233,-500.0,0.0005589,120]
[321142507,1711908672242,-500.0,0.0005589,120]
[321142508,1711908672252,-297.81,0.0005589,120]
[321142509,1711908672262,-500.0,0.0005589,120]
[321142510,1711908672272,-500.0,0.0005589,120]
[321142511,1711908672282,-1596.31,0.0005589,120]
[321142512,1711908672292,-500.0,0.0005589,120]
[321142513,1711908672302,-810.88,0.0005589,120]
[321142514,1711908672516,-10458.37,0.0005589,120]
[321142515,1711908672526,-500.0,0.0005589,120]
[321142516,1711908672536,-500.0,0.0005589,120]
[321142517,1711908672546,-1071.85,0.0005589,120]
[321142518,1711908672555,-520.56,0.0005589,120]
[321142519,1711908672565,-500.0,0.0005589,120]
[321142520,1711908672575,-500.0,0.0005589,120]
[321142521,1711908672584,-500.0,0.0005589,120]
[321142522,1711908672594,-500.0,0.0005589,120]
[321142523,1711908672604,-500.0,0.0005589,120]
[321142524,1711908672613,-515.51,0.0005589,120]
[321142525,1711908672622,-372.25,0.0005589,120]
[321142526,1711908672632,-500.0,0.0005589,120]
[321142527,1711908672641,-520.07,0.0005589,120]
[321142528,1711908672650,-500.0,0.0005589,120]
[321142529,1711908672660,-202.28770564,0.0005589,120]
[321142530,1711908672670,-500.0,0.0005589,120]
[321142531,1711908672683,-500.0,0.0005589,120]
[321142532,1711908672693,-500.0,0.0005589,120]
[321142533,1711908672702,-956.86,0.0005589,120]
[321142534,1711908672711,-500.0,0.0005589,120]
[321142535,1711908672721,-500.0,0.0005589,120]
[321142536,1711908672732,-500.0,0.0005589,120]
[321142537,1711908672743,-500.0,0.0005589,120]
[321142538,1711908672754,-1008.24,0.0005589,120]
[321142539,1711908672764,-500.0,0.0005589,120]
[321142540,1711908672773,-514.26,0.0005589,120]
[321142541,1711908672782,-500.0,0.0005589,120]
[321142542,1711908672791,-500.0,0.0005589,120]
[321142543,1711908672801,-500.0,0.0005589,120]
[321142544,1711908672810,-500.0,0.0005589,120]
[321142545,1711908672819,-1713.58,0.0005589,21]
[321142546,1711908672829,-500.0,0.0005589,120]
[321142547,1711908672839,-500.0,0.0005589,120]
[321142548,1711908672849,-761.78,0.0005589,120]
[321142549,1711908672859,-647.03,0.0005589,120]
[321142550,1711908672868,-1017.54,0.0005589,120]
[321142551,1711908672878,-629.95159071,0.0005589,120]
[321142552,1711908672887,-1083.62,0.0005589,120]
[321142553,1711908672897,-500.0,0.0005589,120]
[321142554,1711908672906,-500.0,0.0005589,120]
[321142555,1711908672915,-500.0,0.0005589,120]
[321142556,1711908672926,-1151.56,0.0005589,120]
[321142557,1711908672935,-500.0,0.0005589,120]
[321142558,1711908672944,-705.26,0.0005589,120]
[321142559,1711908672954,-500.0,0.0005589,120]
[321142560,1711908672963,-1812.14,0.0005589,120]
[321142561,1711908672973,-500.0,0.0005589,120]
[321142562,1711908672982,-500.0,0.0005589,120]
[321142563,1711908672992,-500.0,0.0005589,120]
[321142564,1711908673001,-500.0,0.0005589,120]
[321142565,1711908673011,-500.0,0.0005589,120]
[321142566,1711908673020,-3632.67,0.0005589,120]
[321142567,1711908673030,-777.77,0.0005589,120]
[321142568,1711908673039,-500.0,0.0005589,120]
[321142569,1711908673048,-2065.04,0.0005589,120]
[321142570,1711908673058,-500.0,0.0005589,120]
[321142571,1711908673067,-500.0,0.0005589,120]
[321142572,1711908673077,-500.0,0.0005589,120]
[321142573,1711908673086,-500.0,0.0005589,120]
[321142574,1711908673096,-500.0,0.0005589,120]
[321142575,1711908673106,-1086.78,0.0005589,120]
[321142576,1711908673115,-500.0,0.0005589,120]
[321142577,1711908673125,-1708.94,0.0005589,120]
[321142578,1711908673135,-500.0,0.0005589,120]
[321142579,1711908673144,-1274.25,0.0005589,120]
[321142580,1711908673154,-10405.37,0.0005589,120]
[321142581,1711908673163,-500.0,0.0005589,120]
[321142582,1711908673173,-309.08441681,0.0005589,120]
[321142583,1711908673182,-500.0,0.0005589,120]
[321142584,1711908673191,-2816.51,0.0005589,120]
[321142585,1711908673200,-500.0,0.0005589,120]
[321142586,1711908673210,-500.0,0.0005589,120]
[321142587,1711908673219,-500.0,0.0005589,120]
[321142588,1711908673229,-500.0,0.0005589,120]
[321142589,1711908673238,-500.0,0.0005589,120]
[321142590,1711908673248,-500.0,0.0005589,120]
[321142591,1711908673258,-587.31,0.0005589,120]
[321142592,1711908673267,-574.2,0.0005589,120]
[321142593,1711908673277,-411.66,0.0005589,120]
[321142594,1711908673286,-500.0,0.0005589,120]
[321142595,1711908673295,-500.0,0.0005589,120]
[321142596,1711908673305,-2188.08,0.0005589,120]
[321142597,1711908673314,-241.93350599,0.0005589,120]
[321142598,1711908673323,-500.0,0.0005589,120]
[321142599,1711908673333,-500.0,0.0005589,120]
[321142600,1711908673343,-505.55,0.0005589,120]
[321142601,1711908673352,-500.0,0.0005589,120]
[321142602,1711908673361,-819.73,0.0005589,120]
[321142603,1711908673370,-442.4,0.0005589,120]
[321142604,1711908673380,-500.0,0.0005589,120]
[321142605,1711908673389,-500.0,0.0005589,120]
[321142606,1711908673398,-500.0,0.0005589,120]
[321142607,1711908673407,-4649.04,0.0005589,120]
[321142608,1711908673417,-500.0,0.0005589,120]
[321142609,1711908673427,-500.0,0.0005589,120]
[321142610,1711908673436,-707.12,0.0005589,120]
[321142611,1711908673445,-243.77,0.0005589,120]
[321142612,1711908673454,-2267.81,0.0005589,120]
[321142613,1711908673463,-500.0,0.0005589,120]
[321142614,1711908673473,-500.0,0.0005589,120]
[321142615,1711908673482,-5133.4,0.0005589,120]
[321142616,1711908673492,-1480.3,0.0005589,120]
[321142617,1711908673501,-805.22,0.0005589,120]
[321142618,1711908673510,-500.0,0.0005589,120]
[321142619,1711908673520,-500.0,0.0005589,120]
[321142620,1711908673529,-1427.42,0.0005589,120]
[321142621,1711908673539,-2273.08,0.0005589,120]
[321142622,1711908673548,-500.0,0.0005589,120]
[321142623,1711908673557,-6661.02,0.0005589,120]
[321142624,1711908673567,-500.0,0.0005589,120]
[321142625,1711908673576,-4444.01,0.0005589,120]
[321142626,1711908673586,-642.39,0.0005589,120]
[321142627,1711908673596,-500.0,0.0005589,120]
[321142628,1711908673605,-427.58,0.0005589,120]
[321142629,1711908673614,-500.0,0.0005589,120]
[321142630,1711908673624,-500.0,0.0005589,120]
[321142631,1711908673633,-572.95,0.0005589,120]
[321142632,1711908673643,-500.0,0.0005589,120]
[321142633,1711908673652,-6431.04,0.0005589,120]
[321142634,1711908673662,-2363.15,0.0005589,120]
[321142635,1711908673672,-1611.27,0.0005589,120]
[321142636,1711908673682,-500.0,0.0005589,120]
[321142637,1711908673695,-899.44,0.0005589,120]
[321142638,1711908673705,-500.0,0.0005589,120]
[321142639,1711908673714,-500.0,0.0005589,120]
[321142640,1711908673723,-1651.19,0.0005589,120]
[321142641,1711908673732,-512.64,0.0005589,120]
[321142642,1711908673742,-500.0,0.0005589,120]
[321142643,1711908673751,-500.0,0.0005589,120]
[321142644,1711908673761,-500.0,0.0005589,120]
[321142645,1711908673771,-1275.53,0.0005589,120]
[321142646,1711908673781,-4862.95,0.0005589,120]
[321142647,1711908673790,-500.0,0.0005589,120]
[321142648,1711908673799,-1488.24,0.0005589,120]
[321142649,1711908673808,-348.15822054,0.0005589,120]
[321142650,1711908673818,-816.26,0.0005589,120]
[321142651,1711908673829,-500.0,0.0005589,120]
[321142652,1711908673839,-1110.2,0.0005589,120]
[321142653,1711908673847,-669.65,0.0005589,120]
[321142654,1711908673857,-500.0,0.0005589,120]
[321142655,1711908673867,-3231.72,0.0005589,120]
[321142656,1711908673876,-642.72,0.0005589,120]
[321142657,1711908673886,-705.23,0.0005589,120]
[321142658,1711908673895,-713.19,0.0005589,120]
[321142659,1711908673905,-2389.97,0.0005589,120]
[321142660,1711908673915,-500.0,0.0005589,120]
[321142661,1711908673925,-500.0,0.0005589,120]
[321142662,1711908673934,-648.84,0.0005589,120]
[321142663,1711908673943,-500.0,0.0005589,120]
[321142664,1711908673952,-500.0,0.0005589,120]
[321142665,1711908673961,-1994.62,0.0005589,120]
[321142666,1711908673971,-500.0,0.0005589,120]
[321142667,1711908673980,-2619.63,0.0005589,120]
[321142668,1711908673990,-500.0,0.0005589,120]
[321142669,1711908673999,-500.0,0.0005589,120]
[321142670,1711908674008,-500.0,0.0005589,120]
[321142671,1711908674018,-500.0,0.0005589,16]
[321142672,1711908674027,-500.0,0.0005589,120]
[321142673,1711908674037,-3992.88,0.0005589,120]
[321142674,1711908674046,-4661.97,0.0005589,120]
[321142675,1711908674055,-1467.45,0.0005589,120]
[321142676,1711908674065,-7813.73,0.0005589,120]
[321142677,1711908674074,-500.0,0.0005589,120]
[321142678,1711908674083,-2947.07,0.0005589,120]
[321142679,1711908674092,-595.08,0.0005589,120]
[321142680,1711908674101,-635.56,0.0005589,120]
[321142681,1711908674111,-500.0,0.0005589,120]
[321142682,1711908674120,-1656.13,0.0005589,120]
[321142683,1711908674129,-500.0,0.0005589,120]
[321142684,1711908674138,-500.0,0.0005589,120]
[321142685,1711908674148,-697.65,0.0005589,120]
[321142686,1711908674158,-500.0,0.0005589,120]
[321142687,1711908674167,-500.0,0.0005589,120]
[321142688,1711908674177,-709.24,0.0005589,120]
[321142689,1711908674186,-500.0,0.0005589,120]
[321142690,1711908674196,-567.42,0.0005589,120]
[321142691,1711908674205,-500.0,0.0005589,120]
[321142692,1711908674215,-500.0,0.0005589,120]
[321142693,1711908674224,-500.0,0.0005589,120]
[321142694,1711908674233,-500.0,0.0005589,120]
[321142695,1711908674242,-729.76,0.0005589,120]
[321142696,1711908674252,-2362.9,0.0005589,120]
[321142697,1711908674261,-500.0,0.0005589,120]
[321142698,1711908674271,-500.0,0.0005589,120]
[321142699,1711908674280,-589.91419204,0.0005589,120]
[321142700,1711908674290,-151.0,0.0005611,120]
[321142701,1711908674299,-500.0,0.00056164,120]
[321142702,1711908674308,-500.0,0.00056164,120]
[321142703,1711908674317,-500.0,0.00056164,120]
[321142704,1711908674326,-455.09,0.00056164,120]
[321142705,1711908674335,-500.0,0.00056164,120]
[321142706,1711908674344,-500.0,0.00056164,120]
[321142707,1711908674354,-206.6,0.00056164,120]
[321142708,1711908674363,-500.0,0.00056164,120]
[321142709,1711908674371,-500.0,0.00056164,120]
[321142710,1711908674381,-500.0,0.00056164,120]
[321142711,1711908674390,-500.0,0.00056164,7]
[321142712,1711908674399,-500.0,0.00056164,120]
[321142713,1711908674408,-500.0,0.00056164,120]
[321142714,1711908674417,-500.0,0.00056164,120]
[321142715,1711908674427,-500.0,0.00056164,120]
[321142716,1711908674436,-500.0,0.00056164,120]
[321142717,1711908674445,-500.0,0.00056164,120]
[321142718,1711908674455,-193.99,0.00056164,120]
[321142719,1711908674464,-500.0,0.00056164,120]
[321142720,1711908674474,-500.0,0.00056164,120]
[321142721,1711908674483,-500.0,0.00056164,120]
[321142722,1711908674492,-500.0,0.00056164,120]
[321142723,1711908674501,-500.0,0.00056164,120]
[321142724,1711908674510,-500.0,0.00056164,120]
[321142725,1711908674519,-500.0,0.00056164,120]
[321142726,1711908674528,-500.0,0.00056164,120]
[321142727,1711908674537,-500.0,0.00056164,120]
[321142728,1711908674547,-500.0,0.00056164,120]
[321142729,1711908674556,-500.0,0.00056164,120]
[321142730,1711908674565,-500.0,0.00056164,120]
[321142731,1711908674574,-500.0,0.00056164,120]
[321142732,1711908674583,-500.0,0.00056164,120]
[321142733,1711908674592,-500.0,0.00056164,120]
[321142734,1711908674601,-500.0,0.00056164,120]
[321142735,1711908674610,-500.0,0.00056164,120]
[321142736,1711908674620,-390.25,0.00056164,120]
[321142737,1711908674629,-500.0,0.00056164,120]
[321142738,1711908674638,-590.15,0.00056164,120]
[321142739,1711908674647,-187.51232503,0.00056164,120]
[321142740,1711908674657,-500.0,0.00056164,120]
[321142741,1711908674666,-500.0,0.00056164,120]
[321142742,1711908674676,-500.0,0.00056164,120]
[321142743,1711908674691,-500.0,0.00056164,120]
[321142744,1711908674700,-500.0,0.00056164,120]
[321142745,1711908674709,-500.0,0.00056164,120]
[321142746,1711908674720,-500.0,0.00056164,120]
[321142747,1711908674730,-500.0,0.00056164,120]
[321142748,1711908674740,-466.56,0.00056164,120]
[321142749,1711908674749,-500.0,0.00056164,120]
[321142750,1711908674808,-500.0,0.00056164,120]
[321142751,1711908674818,-500.0,0.00056164,120]
[321142752,1711908674828,-256.74,0.00056164,120]
[321142753,1711908674838,-500.0,0.00056164,120]
[321142754,1711908674847,-500.0,0.00056164,120]
[321142755,1711908674856,-500.0,0.00056164,120]
[321142756,1711908674867,-171.14,0.00056164,120]
[321142757,1711908674876,-500.0,0.00056164,120]
[321142758,1711908674885,-500.0,0.00056164,120]
[321142759,1711908674894,-162.04,0.00056164,120]
[321142760,1711908674903,-500.0,0.00056164,120]
[321142761,1711908674912,-500.0,0.00056164,120]
[321142762,1711908674921,-500.0,0.00056164,120]
[321142763,1711908674930,-212.47,0.00056164,120]
[321142764,1711908674939,-500.0,0.00056164,120]
[321142765,1711908674948,-500.0,0.00056164,120]
[321142766,1711908674957,-451.32,0.00056164,120]
[321142767,1711908674966,-500.0,0.00056164,120]
[321142768,1711908674975,-500.0,0.00056164,120]
[321142769,1711908674985,-261.8,0.00056164,120]
[321142770,1711908674996,-500.0,0.00056164,120]
[321142771,1711908675006,-664.54,0.00056164,120]
[321142772,1711908675015,-500.0,0.00056164,120]
[321142773,1711908675025,-500.0,0.00056164,120]
[321142774,1711908675034,-500.0,0.00056164,120]
[321142775,1711908675043,-1004.03,0.00056164,120]
[321142776,1711908675052,-451.08,0.00056164,120]
[321142777,1711908675061,-500.0,0.00056164,120]
[321142778,1711908675071,-150.0,0.00056164,120]
[321142779,1711908675080,-500.0,0.00056164,120]
[321142780,1711908675089,-500.0,0.00056164,120]
[321142781,1711908675098,-500.0,0.00056164,120]
[321142782,1711908675107,-500.0,0.00056164,120]
[321142783,1711908675116,-804.28,0.00056164,120]
[321142784,1711908675126,-500.0,0.00056164,120]
[321142785,1711908675135,-361.92733814,0.00056164,120]
[321142786,1711908675144,-500.0,0.00056164,120]
[321142787,1711908675154,-500.0,0.00056164,120]
[321142788,1711908675163,-914.67,0.00056164,120]
[321142789,1711908675172,-500.0,0.00056164,120]
[321142790,1711908675181,-500.0,0.00056164,120]
[321142791,1711908675190,-510.44,0.00056164,120]
[321142792,1711908675199,-500.0,0.00056164,120]
[321142793,1711908675209,-186.25492146,0.00056164,120]
[321142794,1711908675218,-1062.57,0.00056164,120]
[321142795,1711908675227,-500.0,0.00056164,120]
[321142796,1711908675236,-500.0,0.00056164,120]
[321142797,1711908675245,-500.0,0.00056164,120]
[321142798,1711908675254,-500.0,0.00056164,120]
[321142799,1711908675263,-500.0,0.00056164,120]
[321142800,1711908675273,-500.0,0.00056164,120]
[321142801,1711908675284,-500.0,0.00056164,120]
[321142802,1711908675293,-500.0,0.00056164,120]
[321142803,1711908675303,-500.0,0.00056164,2]
[321142804,1711908675313,-500.0,0.00056164,120]
[321142805,1711908675321,-500.0,0.00056164,120]
[321142806,1711908675330,-607.58,0.00056164,120]
[321142807,1711908675339,-500.0,0.00056164,120]
[321142808,1711908675348,-980.98,0.00056164,120]
[321142809,1711908675357,-500.0,0.00056164,120]
[321142810,1711908675366,-500.0,0.00056164,120]
[321142811,1711908675375,-500.0,0.00056164,120]
[321142812,1711908675383,-500.0,0.00056164,120]
[321142813,1711908675392,-500.0,0.00056164,120]
[321142814,1711908675402,-500.0,0.00056164,120]
[321142815,1711908675412,-500.0,0.00056164,120]
[321142816,1711908675420,-500.0,0.00056164,120]
[321142817,1711908675430,-500.0,0.00056164,120]
[321142818,1711908675439,-500.0,0.00056164,120]
[321142819,1711908675448,-592.91083546,0.00056164,120]
[321142820,1711908675458,-529.82,0.00056164,120]
[321142821,1711908675468,-515.91,0.00056164,120]
[321142822,1711908675478,-500.0,0.00056164,120]
[321142823,1711908675488,-500.0,0.00056164,120]
[321142824,1711908675499,-691.41,0.00056164,120]
[321142825,1711908675509,-163.18,0.00056164,120]
[321142826,1711908675520,-306.73,0.00056164,120]
[321142827,1711908675531,-500.0,0.00056164,120]
[321142828,1711908675541,-500.0,0.00056164,120]
[321142829,1711908675552,-500.0,0.00056164,120]
[321142830,1711908675560,-500.0,0.00056164,120]
[321142831,1711908675569,-500.0,0.00056164,120]
[321142832,1711908675578,-500.0,0.00056164,120]
[321142833,1711908675587,-500.0,0.00056164,120]
[321142834,1711908675596,-500.0,0.00056164,120]
[321142835,1711908675605,-500.0,0.00056164,120]
[321142836,1711908675614,-500.0,0.00056164,120]
[321142837,1711908675624,-500.0,0.00056164,120]
[321142838,1711908675632,-500.0,0.00056164,120]
[321142839,1711908675641,-535.03,0.00056164,120]
[321142840,1711908675650,-500.0,0.00056164,120]
[321142841,1711908675659,-500.0,0.00056164,120]
[321142842,1711908675668,-500.0,0.00056164,120]
[321142843,1711908675677,-834.12,0.00056164,120]
[321142844,1711908675687,-500.0,0.00056164,120]
[321142845,1711908675699,-500.0,0.00056164,120]
[321142846,1711908675708,-500.0,0.00056164,120]
[321142847,1711908675718,-500.0,0.00056164,120]
[321142848,1711908675727,-500.0,0.00056164,120]
[321142849,1711908675738,-500.0,0.00056164,120]
[321142850,1711908675746,-597.15,0.00056164,120]
[321142851,1711908675756,-500.0,0.00056164,120]
[321142852,1711908675765,-500.0,0.00056164,120]
[321142853,1711908675775,-500.0,0.00056164,120]
[321142854,1711908675784,-2161.52,0.00056164,120]
[321142855,1711908675794,-523.05,0.00056164,120]
[321142856,1711908675803,-500.0,0.00056164,120]
[321142857,1711908675812,-216.24,0.00056164,120]
[321142858,1711908675821,-500.0,0.00056164,120]
[321142859,1711908675831,-500.0,0.00056164,120]
[321142860,1711908675839,-253.75,0.00056164,7]
[321142861,1711908675848,-851.6,0.00056164,120]
[321142862,1711908675858,-500.0,0.00056164,120]
[321142863,1711908675866,-500.0,0.00056164,120]
[321142864,1711908675876,-170.2,0.00056164,120]
[321142865,1711908675885,-277.13,0.00056164,120]
[321142866,1711908675894,-500.0,0.00056164,120]
[321142867,1711908675902,-500.0,0.00056164,120]
[321142868,1711908675912,-500.0,0.00056164,120]
[321142869,1711908675921,-1120.95,0.00056164,120]
[321142870,1711908675930,-500.0,0.00056164,120]
[321142871,1711908675939,-500.0,0.00056164,120]
[321142872,1711908675948,-500.0,0.00056164,50]
[321142873,1711908675958,-500.0,0.00056164,120]
[321142874,1711908675967,-500.0,0.00056164,120]
[321142875,1711908675975,-13825.51,0.00056164,120]
[321142876,1711908675984,-500.0,0.00056164,120]
[321142877,1711908675993,-4835.83,0.00056164,120]
[321142878,1711908676002,-238.1,0.00056164,120]
[321142879,1711908676011,-500.0,0.00056164,120]
[321142880,1711908676020,-500.0,0.00056164,120]
[321142881,1711908676029,-500.0,0.00056164,120]
[321142882,1711908676038,-645.15,0.00056164,120]
[321142883,1711908676047,-500.0,0.00056164,120]
[321142884,1711908676056,-323.19629164,0.00056164,120]
[321142885,1711908676065,-500.0,0.00056164,120]
[321142886,1711908676074,-500.0,0.00056164,120]
[321142887,1711908676083,-500.0,0.00056164,120]
[321142888,1711908676092,-1596.31,0.00056164,120]
[321142889,1711908676101,-500.0,0.00056164,120]
[321142890,1711908676110,-810.88,0.00056164,120]
[321142891,1711908676119,-10458.37,0.00056164,120]
[321142892,1711908676128,-500.0,0.00056164,120]
[321142893,1711908676137,-500.0,0.00056164,120]
[321142894,1711908676146,-1071.85,0.00056164,120]
[321142895,1711908676155,-520.56,0.00056164,120]
[321142896,1711908676164,-500.0,0.00056164,120]
[321142897,1711908676173,-500.0,0.00056164,120]
[321142898,1711908676182,-500.0,0.00056164,120]
[321142899,1711908676191,-500.0,0.00056164,120]
[321142900,1711908676200,-500.0,0.00056164,120]
[321142901,1711908676209,-515.51,0.00056164,120]
[321142902,1711908676218,-500.0,0.00056164,120]
[321142903,1711908676227,-500.0,0.00056164,120]
[321142904,1711908676236,-500.0,0.00056164,120]
[321142905,1711908676245,-500.0,0.00056164,120]
[321142906,1711908676254,-500.0,0.00056164,120]
[321142907,1711908676263,-956.86,0.00056164,120]
[321142908,1711908676272,-500.0,0.00056164,120]
[321142909,1711908676281,-500.0,0.00056164,120]
[321142910,1711908676290,-500.0,0.00056164,120]
[321142911,1711908676299,-500.0,0.00056164,120]
[321142912,1711908676309,-1008.24,0.00056164,120]
[321142913,1711908676318,-500.0,0.00056164,120]
[321142914,1711908676327,-514.26,0.00056164,120]
[321142915,1711908676335,-500.0,0.00056164,120]
[321142916,1711908676344,-500.0,0.00056164,120]
[321142917,1711908676353,-500.0,0.00056164,120]
[321142918,1711908676362,-500.0,0.00056164,120]
[321142919,1711908676371,-1713.58,0.00056164,21]
[321142920,1711908676381,-500.0,0.00056164,120]
[321142921,1711908676390,-500.0,0.00056164,120]
[321142922,1711908676399,-761.78,0.00056164,120]
[321142923,1711908676407,-647.03,0.00056164,120]
[321142924,1711908676416,-1017.54,0.00056164,120]
[321142925,1711908676425,-1083.62,0.00056164,120]
[321142926,1711908676434,-500.0,0.00056164,120]
[321142927,1711908676443,-500.0,0.00056164,120]
[321142928,1711908676452,-552.92273226,0.00056164,120]
[321142929,1711908676462,-1151.56,0.00056164,120]
[321142930,1711908676471,-500.0,0.00056164,120]
[321142931,1711908676480,-705.26,0.00056164,120]
[321142932,1711908676489,-500.0,0.00056164,120]
[321142933,1711908676498,-1812.14,0.00056164,120]
[321142934,1711908676507,-500.0,0.00056164,120]
[321142935,1711908676516,-500.0,0.00056164,120]
[321142936,1711908676525,-500.0,0.00056164,120]
[321142937,1711908676533,-500.0,0.00056164,120]
[321142938,1711908676542,-500.0,0.00056164,120]
[321142939,1711908676551,-3632.67,0.00056164,120]
[321142940,1711908676560,-777.77,0.00056164,120]
[321142941,1711908676569,-500.0,0.00056164,120]
[321142942,1711908676578,-2065.04,0.00056164,120]
[321142943,1711908676586,-500.0,0.00056164,120]
[321142944,1711908676595,-500.0,0.00056164,120]
[321142945,1711908676605,-500.0,0.00056164,120]
[321142946,1711908676615,-500.0,0.00056164,120]
[321142947,1711908676624,-500.0,0.00056164,120]
[321142948,1711908676633,-1086.78,0.00056164,120]
[321142949,1711908676642,-500.0,0.00056164,120]
[321142950,1711908676652,-1708.94,0.00056164,120]
[321142951,1711908676661,-500.0,0.00056164,120]
[321142952,1711908676670,-1274.25,0.00056164,120]
[321142953,1711908676679,-10405.37,0.00056164,120]